bitfinex-derivatives/quotes_ETHF0:USTF0_20241020
["timestamp","ask_amount","ask_price","bid_price","bid_amount"]
[1729438516254,1.0,2698.0,2697.9,6.74151792]
[1729438516548,1.0,2698.0,2697.9,5.86551169]
[1729438516750,1.0,2698.0,2697.9,6.74151169]
[1729438517352,1.0,2698.0,2697.9,6.44015]
[1729438518249,1.0,2698.0,2697.9,5.56415]
[1729438518444,1.0,2698.0,2697.9,0.37075]
[1729438518651,0.37075,2697.9,2697.8,0.37075]
[1729438518852,1.5245,2697.9,2697.6,0.876]
[1729438519154,0.37077,2697.8,2697.7,0.37077]
[1729438519352,42.69525,2697.9,2697.8,0.37076]
[1729438519754,1.89525,2697.9,2697.8,0.37076]
[1729438520056,1.5245,2697.9,2697.8,0.37076]
[1729438520458,0.7527,2697.9,2697.8,0.37076]
[1729438520646,1.0,2698.0,2697.9,0.37075]
[1729438521257,1.0,2698.0,2697.8,0.37075]
[1729438521555,0.37075,2697.9,2697.8,0.37075]
[1729438522157,1.0,2698.0,2697.6,0.876]
[1729438522458,1.37074,2698.0,2697.9,0.37075]
[1729438523252,1.0,2698.0,2697.9,0.37075]
[1729438523445,1.0,2698.0,2697.9,4.95315]
[1729438525352,1.0,2698.0,2697.9,6.66834545]
[1729438525658,1.0,2698.0,2697.9,7.63798973]
[1729438525962,1.0,2698.0,2697.9,8.72696852]
[1729438526458,1.0,2698.0,2697.9,7.63798973]
[1729438527450,1.0,2698.0,2697.9,6.76198973]
[1729438527660,1.0,2698.0,2697.9,7.63798973]
[1729438528047,0.7395,2698.5,2697.9,7.26723973]
[1729438528254,0.7395,2698.5,2698.4,0.37068]
[1729438529061,0.7395,2698.5,2698.4,1.24668]
[1729438530162,0.7395,2698.5,2698.4,0.37068]
[1729438530362,0.7395,2698.5,2698.4,1.24668]
[1729438531261,0.7395,2698.5,2698.4,0.37068]
[1729438531464,0.7395,2698.5,2698.4,1.24668]
[1729438532054,0.7395,2698.5,2698.4,0.37068]
[1729438532759,0.7395,2698.5,2698.3,0.876]
[1729438532760,0.37064,2698.7,2698.6,0.37064]
[1729438533066,0.37064,2698.7,2698.3,0.876]
[1729438533067,0.37066,2698.6,2698.5,0.37065]
[1729438533360,1.13595,2698.7,2698.6,0.37065]
[1729438535058,0.37065,2698.6,2698.5,0.37065]
[1729438535760,1.13594,2698.7,2698.6,0.37065]
[1729438536065,0.37066,2698.6,2698.5,0.37066]
[1729438539470,1.13595,2698.7,2698.6,0.37065]
[1729438540558,0.3707,2698.3,2698.2,0.37069]
[1729438540765,0.3707,2698.3,2698.0,3.2078]
[1729438540766,0.37069,2698.4,2698.3,0.37068]
[1729438541063,0.3707,2698.3,2698.2,0.3707]
[1729438541653,0.37071,2698.2,2698.1,0.37071]
[1729438541858,0.7379,2698.2,2698.1,0.37071]
[1729438542271,1.10861,2698.2,2698.1,0.37071]
[1729438542858,0.7379,2698.2,2698.1,0.37071]
[1729438546753,1.10861,2698.2,2698.1,0.37071]
[1729438546961,4.4443,2698.2,2697.4,3.2078]
[1729438547261,3.2078,2698.0,2697.4,3.2078]
[1729438547467,0.3708,2697.5,2697.4,3.2078]
[1729438547774,3.2078,2698.0,2697.6,0.37078]
[1729438547961,0.37077,2697.7,2697.6,0.37078]
[1729438548460,1.08617,2697.7,2697.6,0.37078]
[1729438548861,2.05008595,2697.7,2697.6,0.37078]
[1729438549064,1.08617,2697.7,2697.1,3.17161588]
[1729438549262,0.3708,2697.5,2697.4,0.37081]
[1729438549458,0.96391595,2697.6,2697.5,0.3708]
[1729438549953,2.05009595,2697.7,2697.5,0.3708]
[1729438550156,2.05009595,2697.7,2697.2,0.37084]
[1729438550357,2.05009595,2697.7,2697.1,2.55311588]
[1729438550965,2.05009595,2697.7,2697.1,1.5828]
[1729438551568,2.05009595,2697.7,2697.5,0.37079]
[1729438551959,0.3708,2697.5,2697.3,0.37082]
[1729438552259,0.3708,2697.5,2697.4,0.37082]
[1729438552562,0.37079,2697.6,2697.3,0.37083]
[1729438552765,3.9232,2697.7,2697.0,3.2078]
[1729438552965,3.9232,2697.7,2696.9,1.5136]
[1729438552966,0.37087,2697.1,2696.9,0.37088]
[1729438553159,0.37087,2697.1,2696.7,3.9469]
[1729438553160,0.7291,2697.0,2696.7,3.2078]
[1729438553360,0.3709,2696.8,2696.7,3.2078]
[1729438553661,0.7291,2697.0,2696.4,3.2078]
[1729438553860,1.69298558,2697.0,2696.4,3.2078]
[1729438554166,0.3709,2696.8,2696.6,0.37092]
[1729438554961,0.7461,2696.7,2696.6,0.37092]
[1729438555664,0.7461,2696.7,2696.2,1.4446]
[1729438555665,1.09997,2697.0,2696.2,1.4446]
[1729438555866,0.7291,2697.0,2696.9,0.37088]
[1729438556065,3.2078,2697.1,2697.0,0.37087]
[1729438556366,3.9539,2697.4,2697.2,0.37084]
[1729438556767,3.9539,2697.4,2696.8,2.2721]
[1729438557466,4.32472,2697.4,2697.2,0.37084]
[1729438557662,4.32472,2697.4,2696.8,2.2721]
[1729438557862,4.32472,2697.4,2697.1,0.37085]
[1729438558064,4.32472,2697.4,2697.2,0.37084]
[1729438558465,3.9539,2697.4,2696.8,2.2721]
[1729438558866,0.37085,2697.2,2697.0,0.37087]
[1729438559273,0.7402,2697.1,2697.0,0.37087]
[1729438560574,0.7402,2697.1,2696.8,2.2721]
[1729438560777,0.7402,2697.1,2697.0,0.37087]
[1729438567091,1.11106,2697.1,2697.0,0.37087]
[1729438567291,0.7402,2697.1,2697.0,0.37087]
[1729438569586,1.11106,2697.1,2697.0,0.37087]
[1729438569878,0.7402,2697.1,2697.0,0.37087]
[1729438570578,0.37087,2697.0,2696.9,0.37088]
[1729438570778,3.948,2697.1,2696.1,4.17452297]
[1729438570988,3.2078,2696.8,2696.2,2.2277]
[1729438571287,0.37092,2696.6,2696.5,0.37094]
[1729438571894,1.5036,2696.7,2696.5,0.37094]
[1729438572189,0.37094,2696.5,2696.4,0.37095]
[1729438572791,1.5036,2696.7,2696.1,4.0808]
[1729438572792,1.5036,2696.7,2696.1,3.2078]
[1729438572997,0.7635,2696.4,2696.0,0.371]
[1729438573194,0.7635,2696.4,2695.9,0.37101]
[1729438573493,0.7635,2696.4,2695.8,3.57882]
[1729438573494,0.37101,2696.0,2695.8,3.57882]
[1729438573694,0.7635,2696.4,2695.8,3.2078]
[1729438573695,1.85242,2695.9,2695.8,3.2078]
[1729438574696,0.37106,2695.7,2695.5,3.2078]
[1729438574898,0.37106,2695.7,2695.5,3.57887]
[1729438575790,3.2078,2695.7,2695.2,3.2078]
[1729438575993,0.37108,2695.5,2695.3,0.37109]
[1729438576495,0.37107,2695.6,2695.4,0.37108]
[1729438576889,3.2078,2695.7,2695.2,3.9253]
[1729438577095,0.37106,2695.6,2695.3,0.37109]
[1729438577288,0.37106,2695.6,2695.2,3.9253]
[1729438577488,0.37106,2695.6,2695.4,0.37109]
[1729438577893,3.2078,2695.7,2695.2,3.9253]
[1729438577894,0.37105,2695.8,2695.5,0.37107]
[1729438578086,0.37105,2695.8,2695.2,3.9253]
[1729438578295,0.37105,2695.8,2695.6,0.37105]
[1729438579896,1.4814,2695.9,2695.2,3.9253]
[1729438580101,3.2078,2695.7,2695.2,3.9253]
[1729438580295,0.37109,2695.5,2695.2,4.29641]
[1729438580600,0.7841,2695.4,2695.3,0.3711]
[1729438580789,1.15519,2695.4,2695.3,0.11602896]
[1729438580990,1.15519,2695.4,2695.3,0.30167635]
[1729438580991,6.43489,2695.4,2695.3,0.30167635]
[1729438581200,6.43489,2695.4,2695.3,1.32273062]
[1729438581392,6.43489,2695.4,2695.3,1.20670126]
[1729438581597,0.37112,2695.2,2695.0,0.37114]
[1729438581795,0.37112,2695.2,2695.1,0.11604039]
[1729438582394,2.3534,2695.4,2695.1,0.11604039]
[1729438582593,2.3534,2695.4,2694.9,3.9694]
[1729438582594,0.3711,2695.3,2695.2,0.11604039]
[1729438582794,0.3711,2695.3,2695.2,0.48715039]
[1729438583099,4.0815,2695.3,2695.2,0.11604039]
[1729438583403,3.57885,2695.7,2695.5,0.37107]
[1729438583700,3.2078,2695.7,2695.6,0.37106]
[1729438584302,6.9174,2695.7,2695.1,0.7499]
[1729438584599,1.91826,2695.6,2695.4,0.37108]
[1729438585295,1.5472,2695.6,2695.5,0.37108]
[1729438585506,3.2078,2695.7,2695.6,0.37106]
[1729438586000,3.2078,2695.7,2695.6,0.67269377]
[1729438586196,3.2078,2695.7,2695.6,0.48707201]
[1729438586500,3.2078,2695.7,2695.6,0.37106]
[1729438586702,3.2078,2695.7,2695.6,0.48707603]
[1729438587798,3.2078,2695.7,2695.6,0.11601603]
[1729438588007,4.31435,2695.7,2695.6,0.37106]
[1729438589401,0.7355,2695.7,2695.6,0.37106]
[1729438589603,3.57882,2696.0,2695.8,0.37103]
[1729438590108,3.57881,2696.0,2695.8,0.37103]
[1729438591517,3.2078,2696.0,2695.8,0.37103]
[1729438591805,0.37103,2695.9,2695.7,1.14804]
[1729438593403,0.37103,2695.8,2695.7,0.777]
[1729438593708,0.37102,2695.9,2695.6,0.37106]
[1729438593906,0.37105,2695.8,2695.3,0.7365]
[1729438594214,0.37105,2695.8,2695.7,0.37105]
[1729438594714,0.37105,2695.8,2695.3,0.7365]
[1729438594901,0.37105,2695.8,2695.5,0.37108]
[1729438595103,0.37105,2695.8,2695.3,0.7365]
[1729438595300,0.37105,2695.8,2695.7,0.37105]
[1729438595908,3.2078,2696.0,2695.7,0.37105]
[1729438596202,3.57882,2696.0,2695.3,1.66425]
[1729438596403,3.2078,2696.0,2695.3,1.66425]
[1729438596604,0.37103,2695.9,2695.3,1.66425]
[1729438596806,0.37103,2695.9,2695.7,0.37104]
[1729438597703,3.2078,2696.0,2695.7,0.37104]
[1729438597906,3.2078,2696.0,2695.3,1.66425]
[1729438597907,0.37103,2695.8,2695.6,0.37105]
[1729438598101,0.37103,2695.8,2695.7,0.11601929]
[1729438598305,0.37103,2695.8,2695.7,0.48706929]
[1729438599209,0.37103,2695.8,2695.7,0.11601929]
[1729438599809,0.37103,2695.8,2695.7,0.48706929]
[1729438600113,0.37103,2695.9,2695.8,0.37103]
[1729438601012,0.7637,2696.1,2696.0,0.37101]
[1729438601207,0.7637,2696.1,2696.0,0.48702542]
[1729438601510,0.7637,2696.1,2695.9,0.7854]
[1729438601511,0.7276,2696.4,2695.9,0.7854]
[1729438601712,0.37097,2696.3,2696.2,0.37097]
[1729438601908,0.37097,2696.3,2696.1,0.37099]
[1729438602213,0.7276,2696.4,2695.9,0.7854]
[1729438602411,0.371,2696.1,2695.9,0.7854]
[1729438602709,0.371,2696.1,2696.0,0.48701053]
[1729438602911,0.371,2696.1,2696.0,0.11600053]
[1729438603111,0.37102,2695.9,2695.8,0.37103]
[1729438603418,0.37102,2695.9,2695.8,0.48704361]
[1729438603813,1.15742,2695.9,2695.8,0.48704361]
[1729438604511,0.7864,2695.9,2695.8,0.48704361]
[1729438604815,0.7864,2695.9,2695.8,0.48704326]
[1729438605406,1.15742,2695.9,2695.8,0.48704326]
[1729438605932,0.7864,2695.9,2695.8,0.48704326]
[1729438606913,1.15742,2695.9,2695.8,0.11601326]
[1729438607111,0.7864,2695.9,2695.7,0.37104]
[1729438607318,0.7864,2695.9,2695.8,0.11601429]
[1729438607319,1.15742,2695.9,2695.8,0.11601429]
[1729438607617,1.15742,2695.9,2695.7,0.37104]
[1729438607618,1.15743,2695.9,2695.7,0.37104]
[1729438608130,1.15743,2695.9,2695.8,0.37103]
[1729438608629,1.15743,2695.9,2695.8,0.48704352]
[1729438610620,1.15743,2695.9,2695.8,0.11601352]
[1729438611020,0.37105,2695.7,2695.6,0.37105]
[1729438611221,0.37105,2695.7,2695.6,0.67269494]
[1729438611425,0.7826,2695.8,2695.6,0.48706728]
[1729438611621,1.15364,2695.8,2695.7,0.48706728]
[1729438612722,1.15364,2695.8,2695.7,0.48706816]
[1729438614332,0.7826,2695.8,2695.7,0.48706816]
[1729438618430,1.74047119,2695.8,2695.7,0.48706816]
[1729438618628,0.95787119,2695.8,2695.7,0.67268558]
[1729438618820,0.95787119,2695.9,2695.8,0.37103]
[1729438619018,1.32889119,2695.9,2695.8,0.48704816]
[1729438619323,0.95787119,2695.9,2695.8,0.48704816]
[1729438619530,1.80782679,2696.0,2695.9,0.37102]
[1729438620129,0.37104,2695.8,2695.7,0.37104]
[1729438620427,0.96388144,2695.8,2695.7,0.37104]
[1729438620624,1.33491144,2695.8,2695.7,0.48705505]
[1729438620823,2.06361144,2695.8,2695.7,0.48705505]
[1729438621225,1.69258144,2695.8,2695.7,0.48705505]
[1729438622530,1.09973,2695.8,2695.7,0.48705505]
[1729438623229,1.69269834,2695.8,2695.7,0.48705505]
[1729438623431,0.96399834,2695.8,2695.7,0.48705454]
[1729438623630,0.96399834,2696.0,2695.7,2.36096041]
[1729438623835,0.96399834,2696.0,2695.9,0.37102]
[1729438624133,0.96399834,2696.0,2695.9,0.67265398]
[1729438625236,0.96399834,2696.1,2696.0,0.37101]
[1729438625440,0.96399834,2696.1,2696.0,0.48702454]
[1729438625937,1.81691092,2696.2,2696.1,0.37099]
[1729438626140,1.81691092,2696.2,2696.1,0.48700454]
[1729438626337,1.44592092,2696.2,2696.1,0.48700454]
[1729438628533,2.28671238,2696.3,2696.2,0.37098]
[1729438628735,0.37099,2696.2,2695.9,0.9667974]
[1729438628932,0.37099,2696.2,2696.1,0.37099]
[1729438629132,2.28671238,2696.3,2696.1,0.4869929]
[1729438629343,2.28671238,2696.3,2696.2,0.4869829]
[1729438630043,2.28671238,2696.3,2696.2,0.1160029]
[1729438630242,2.28671238,2696.3,2696.2,0.4869829]
[1729438630939,0.37099,2696.2,2695.9,0.9667974]
[1729438631241,0.9650325,2696.0,2695.9,1.3378174]
[1729438631444,0.9650325,2696.0,2695.9,1.63942616]
[1729438631640,0.9650325,2696.0,2695.9,2.10343965]
[1729438633538,0.9650325,2696.1,2695.9,2.82527922]
[1729438633738,0.9650325,2696.1,2696.0,2.10342965]
[1729438633942,0.9650325,2696.2,2696.1,0.37099]
[1729438634144,0.9650325,2696.3,2696.2,0.37098]
[1729438634344,0.9650325,2696.3,2696.2,1.13660225]
[1729438634534,0.9650325,2696.3,2696.2,1.85796796]
[1729438635343,0.9650325,2696.3,2696.2,1.39395447]
[1729438635546,0.9650325,2696.3,2696.2,1.85792159]
[1729438635738,3.2078,2696.4,2696.3,0.37097]
[1729438635935,5.02629876,2696.4,2696.3,1.13651159]
[1729438636139,5.02629876,2696.4,2696.3,0.67254447]
[1729438636335,5.02629876,2696.4,2696.3,0.48696018]
[1729438636838,1.81849876,2696.4,2696.3,0.48696018]
[1729438637246,1.44754876,2696.4,2696.3,0.48696018]
[1729438637446,1.81849876,2696.4,2696.3,0.48696018]
[1729438637840,1.44754876,2696.4,2696.3,0.48696018]
[1729438638340,1.44754876,2696.4,2696.3,0.48696549]
[1729438638547,1.44754876,2696.5,2696.4,0.37095]
[1729438638741,1.44754876,2696.5,2696.4,0.48694549]
[1729438638941,1.81846876,2696.6,2696.4,0.30157528]
[1729438639150,1.44754876,2696.6,2696.5,0.48693549]
[1729438639542,5.39664876,2696.7,2696.6,0.37092]
[1729438639741,5.39664876,2696.7,2696.6,0.48691549]
[1729438639945,5.76755876,2696.7,2696.6,0.48691549]
[1729438640140,5.39664876,2696.7,2696.6,0.48691549]
[1729438640641,4.32001,2696.7,2696.6,0.48691549]
[1729438640851,5.76755876,2696.7,2696.6,0.11599549]
[1729438641258,0.37094,2696.5,2696.4,0.37095]
[1729438641562,1.33522164,2696.5,2696.4,0.48693819]
[1729438641962,0.96428164,2696.5,2696.4,0.48693882]
[1729438642955,1.33522164,2696.5,2696.4,0.48693704]
[1729438643969,1.33522164,2696.5,2696.4,0.11598704]
[1729438644159,1.81736246,2696.5,2696.4,0.11598704]
[1729438644564,0.37095,2696.4,2696.3,0.37096]
[1729438644763,1.81633989,2696.4,2696.3,0.48695554]
[1729438644959,8.73293989,2696.4,2696.3,0.11599554]
[1729438645166,9.75975238,2696.4,2695.7,0.97274776]
[1729438645366,0.37106,2695.6,2695.5,1.34380776]
[1729438645665,0.37106,2695.6,2695.5,0.30165515]
[1729438645860,0.37106,2695.6,2695.5,0.11602121]
[1729438646058,2.81297942,2695.7,2695.5,0.48710121]
[1729438646365,0.96341942,2695.6,2695.3,3.2078]
[1729438646562,3.2078,2695.5,2695.4,0.11602953]
[1729438646764,0.37113,2695.1,2694.9,4.18054776]
[1729438646970,1.09535,2695.0,2694.7,2.55494776]
[1729438647161,1.4447,2695.0,2694.8,0.11605021]
[1729438647361,2.77905888,2695.0,2694.7,1.95338]
[1729438647561,1.81585,2695.0,2694.8,0.37117]
[1729438647864,1.4447,2695.0,2694.8,0.37117]
[1729438648371,1.81585,2695.0,2694.8,0.37117]
[1729438648667,1.4447,2695.0,2694.8,0.37117]
[1729438649064,1.4447,2695.0,2694.6,3.57899]
[1729438649266,0.37119,2694.7,2694.6,3.2078]
[1729438650278,2.40790888,2695.0,2694.6,3.2078]
[1729438650463,0.37119,2694.7,2694.6,3.2078]
[1729438651370,1.4447,2695.0,2694.6,3.2078]
[1729438651671,0.37118,2694.8,2694.6,3.57899]
[1729438652078,0.37118,2694.8,2694.6,3.2078]
[1729438652369,0.37118,2694.8,2694.6,3.579]
[1729438652562,1.4447,2695.0,2694.6,3.579]
[1729438652563,0.37119,2694.7,2694.6,3.2078]
[1729438652762,1.4447,2695.0,2694.6,3.2078]
[1729438652960,0.37117,2694.8,2694.6,3.57899]
[1729438653174,0.37117,2694.8,2694.6,3.2078]
[1729438653373,0.37118,2694.8,2694.6,3.2078]
[1729438653673,0.37119,2694.7,2694.6,3.2078]
[1729438654067,0.37119,2694.7,2694.4,0.7215]
[1729438654267,3.2078,2694.8,2694.3,3.2078]
[1729438654268,0.37121,2694.5,2694.3,3.2078]
[1729438654474,0.37121,2694.5,2694.3,3.57903]
[1729438654770,0.37121,2694.5,2694.3,3.2078]
[1729438654973,1.16211,2694.5,2694.3,3.2078]
[1729438655372,0.37123,2694.4,2694.3,3.2078]
[1729438655576,1.16212,2694.5,2694.3,3.2078]
[1729438655877,0.7604,2694.4,2694.3,3.57904]
[1729438656073,0.7604,2694.4,2694.3,3.2078]
[1729438656368,0.37126,2694.2,2694.0,3.2078]
[1729438656764,0.37127,2694.1,2694.0,3.2078]
[1729438656965,0.37127,2694.1,2693.6,0.37133]
[1729438656966,0.37128,2694.0,2693.6,0.37133]
[1729438657167,1.4524,2694.0,2693.3,0.7887]
[1729438657471,0.37132,2693.8,2693.3,0.7887]
[1729438657670,0.37132,2693.8,2693.5,0.37134]
[1729438657878,1.4524,2694.0,2693.2,3.2078]
[1729438658078,0.37136,2693.5,2693.3,0.37137]
[1729438658572,0.7322,2693.7,2693.2,0.7887]
[1729438658778,0.37134,2693.6,2693.4,0.37136]
[1729438658969,1.10353,2693.7,2693.4,0.37136]
[1729438659169,0.7322,2693.7,2693.4,0.37136]
[1729438659370,0.37134,2693.6,2693.0,0.37142]
[1729438659566,0.37134,2693.6,2693.4,0.37136]
[1729438660378,0.37134,2693.6,2693.0,0.7643]
[1729438660584,0.37134,2693.6,2693.4,0.37136]
[1729438661881,0.37134,2693.6,2693.0,0.7643]
[1729438662081,0.37134,2693.6,2693.4,0.37136]
[1729438662263,0.7322,2693.7,2693.0,0.7643]
[1729438662578,0.37134,2693.6,2693.3,0.37137]
[1729438662774,0.37135,2693.5,2693.3,0.37137]
[1729438663276,0.37135,2693.6,2693.4,0.37136]
[1729438663478,1.10353,2693.7,2693.5,0.37135]
[1729438663667,3.2078,2693.8,2693.2,3.2078]
[1729438663867,3.2078,2693.8,2693.7,0.37132]
[1729438664078,5.01743,2694.4,2694.2,0.37125]
[1729438664277,5.01743,2694.4,2693.6,0.92833]
[1729438664278,5.01743,2694.4,2694.1,0.37126]
[1729438664967,5.01743,2694.4,2693.7,1.45]
[1729438665164,5.01743,2694.4,2694.1,0.37126]
[1729438665564,0.37125,2694.3,2694.1,0.37127]
[1729438666169,4.6462,2694.4,2694.1,0.37127]
[1729438667170,0.37125,2694.3,2694.1,0.37127]
[1729438667773,4.6462,2694.4,2694.2,0.37125]
[1729438667978,3.2078,2694.4,2694.3,0.37124]
[1729438668177,3.9739,2694.9,2694.1,3.2078]
[1729438668382,5.07573,2695.2,2694.9,0.37115]
[1729438668575,0.37114,2695.1,2694.9,0.37115]
[1729438668972,5.80672,2695.2,2694.9,0.37115]
[1729438670474,4.7151,2695.2,2694.5,0.7311]
[1729438670671,4.7151,2695.2,2695.0,0.37113]
[1729438671379,4.7151,2695.2,2694.5,1.65911]
[1729438671380,4.7151,2695.2,2695.1,0.37113]
[1729438672574,4.7151,2695.2,2695.0,0.37114]
[1729438673172,1.5073,2695.2,2695.0,0.37114]
[1729438673385,1.87843,2695.2,2694.9,0.37115]
[1729438673688,0.37113,2695.1,2694.9,0.37115]
[1729438674386,5.08622,2695.2,2694.9,0.37115]
[1729438675183,4.7151,2695.2,2694.5,0.7311]
[1729438675383,4.7151,2695.2,2695.0,0.37114]
[1729438675587,5.08623,2695.2,2694.9,0.37115]
[1729438675982,5.08623,2695.2,2694.5,0.7311]
[1729438676182,5.08623,2695.2,2695.0,0.37114]
[1729438676380,4.7151,2695.2,2695.0,0.37114]
[1729438678393,0.37113,2695.1,2694.8,0.37116]
[1729438678690,0.37113,2695.1,2694.9,0.37115]
[1729438679379,5.08622,2695.2,2694.5,0.7311]
[1729438679584,5.08622,2695.2,2695.0,0.37114]
[1729438680592,1.87842,2695.2,2695.0,0.37114]
[1729438680793,5.08622,2695.2,2695.0,0.37114]
[1729438681586,4.7151,2695.2,2694.5,3.9389]
[1729438681780,3.2078,2695.2,2695.1,0.37113]
[1729438681991,1.08177,2695.6,2694.8,4.13574]
[1729438682188,1.08177,2695.6,2695.4,0.37108]
[1729438682491,44.7889,2695.7,2694.9,0.769]
[1729438682698,45.15995,2695.7,2695.5,0.37107]
[1729438682993,45.15995,2695.7,2695.0,1.65545]
[1729438682994,3.9889,2695.7,2695.0,1.65545]
[1729438683192,3.9889,2695.7,2695.6,0.37106]
[1729438683392,7.6985,2695.7,2695.6,0.37106]
[1729438683594,1.4518,2695.9,2695.2,3.9158]
[1729438683595,0.7289,2695.9,2695.2,3.9158]
[1729438683796,0.7289,2695.9,2695.8,0.37103]
[1729438684795,0.7129,2696.1,2695.5,1.4933]
[1729438684993,1.08389,2696.1,2695.9,0.37101]
[1729438685295,1.0839,2696.1,2695.9,0.37102]
[1729438685990,0.7129,2696.1,2696.0,0.37101]
[1729438686193,41.5179,2696.2,2696.1,0.37099]
[1729438686385,3.2078,2696.3,2696.2,0.37098]
[1729438686889,0.37101,2696.0,2695.8,0.37103]
[1729438687194,1.4564,2695.9,2695.0,2.57655]
[1729438687395,1.4564,2695.9,2695.7,0.37105]
[1729438687590,1.4564,2695.9,2695.8,0.37103]
[1729438687893,1.4564,2695.9,2695.7,0.37105]
[1729438687894,1.82743,2695.9,2695.7,0.37105]
[1729438689095,0.37105,2695.8,2695.5,0.37106]
[1729438689285,0.37105,2695.8,2695.6,0.37106]
[1729438690287,3.7096,2695.7,2695.1,0.7541]
[1729438690488,3.7096,2695.7,2695.3,0.3711]
[1729438690489,0.37108,2695.5,2695.3,0.3711]
[1729438690695,3.2078,2695.7,2695.1,0.7541]
[1729438691000,0.7728,2695.4,2695.2,0.37112]
[1729438691198,0.7728,2695.4,2695.3,0.3711]
[1729438693594,1.14389,2695.4,2695.2,0.37111]
[1729438693995,3.2078,2695.3,2694.6,3.2078]
[1729438694190,0.37115,2695.0,2694.8,0.37116]
[1729438694390,0.37117,2694.9,2694.6,3.2078]
[1729438694593,3.2078,2695.0,2694.6,3.2078]
[1729438694897,3.2078,2695.0,2694.6,3.57899]
[1729438695106,0.37118,2694.8,2694.7,0.37119]
[1729438695403,0.37117,2694.9,2694.7,0.37119]
[1729438695899,3.2078,2695.0,2694.6,3.2078]
[1729438696095,0.37117,2694.9,2694.8,0.37117]
[1729438696299,0.37117,2694.9,2694.6,3.2078]
[1729438696300,0.37117,2694.9,2694.7,0.37118]
[1729438697093,0.37117,2694.9,2694.7,0.37119]
[1729438697301,3.2078,2695.0,2694.6,3.2078]
[1729438697499,3.2078,2695.0,2694.9,0.37116]
[1729438698591,0.37117,2694.9,2694.7,0.37117]
[1729438699005,0.37117,2694.9,2694.6,3.2078]
[1729438699197,0.37117,2694.9,2694.8,0.37117]
[1729438699600,3.57895,2695.0,2694.9,0.37116]
[1729438700101,0.37116,2694.9,2694.8,0.37117]
[1729438700495,3.57895,2695.0,2694.6,3.2078]
[1729438700696,3.57895,2695.0,2694.9,0.37116]
[1729438701992,3.57895,2695.0,2694.6,3.2078]
[1729438702302,3.2078,2695.0,2694.6,3.2078]
[1729438702602,3.57895,2695.0,2694.9,0.37116]
[1729438702800,0.37115,2695.0,2694.9,0.37116]
[1729438703006,3.57895,2695.0,2694.9,0.37116]
[1729438703706,3.2078,2695.0,2694.6,3.2078]
[1729438704005,3.57895,2695.0,2694.9,0.37116]
[1729438704394,3.2078,2695.3,2695.2,0.37112]
[1729438704596,1.67797759,2695.8,2695.0,1.4599]
[1729438704794,0.37107,2695.6,2695.5,0.37108]
[1729438705303,3.7096,2695.6,2695.5,0.37108]
[1729438705500,1.4914,2695.8,2695.0,1.4599]
[1729438705699,1.4914,2695.8,2695.7,0.37105]
[1729438705911,0.7703,2695.8,2695.7,0.37105]
[1729438706911,3.2078,2695.9,2695.8,0.37103]
[1729438708909,3.57883,2695.9,2695.7,0.37104]
[1729438709214,3.57883,2695.9,2695.6,1.12355]
[1729438709215,0.37104,2695.8,2695.6,1.12355]
[1729438709512,3.2078,2695.9,2695.6,0.7525]
[1729438709700,3.57883,2695.9,2695.7,0.37105]
[1729438710103,3.2078,2695.9,2695.8,0.37103]
[1729438711111,0.7703,2696.2,2696.1,0.37099]
[1729438713210,4.53560759,2696.6,2696.3,0.37095]
[1729438713407,5.30830759,2696.6,2696.3,0.37095]
[1729438713915,4.93737759,2696.6,2696.0,0.7176]
[1729438714220,0.7727,2696.6,2696.0,0.7176]
[1729438714418,0.7727,2696.6,2696.4,0.37095]
[1729438714419,1.14363,2696.6,2696.4,0.37095]
[1729438714623,0.7727,2696.6,2696.5,0.37094]
[1729438715320,3.2078,2696.9,2696.2,0.92745]
[1729438715510,3.2078,2696.9,2696.8,0.3709]
[1729438715707,0.7486,2697.0,2696.8,0.3709]
[1729438715907,2.38507759,2697.2,2697.1,0.37086]
[1729438715908,3.9165,2697.2,2697.1,0.37086]
[1729438717120,3.2078,2697.2,2697.1,0.37086]
[1729438718716,3.2078,2697.2,2697.1,4.07886]
[1729438718915,3.2078,2697.5,2696.8,3.2078]
[1729438719113,3.2078,2697.5,2696.9,0.7205]
[1729438719613,41.94559,2697.6,2697.3,0.37083]
[1729438720422,44.7826,2697.6,2697.4,0.37081]
[1729438720724,44.7826,2697.6,2696.9,0.7205]
[1729438720923,0.37085,2697.2,2696.9,1.09138]
[1729438722009,0.37085,2697.2,2696.9,0.7205]
[1729438722230,0.37086,2697.1,2696.9,1.09138]
[1729438722420,0.37086,2697.1,2696.9,0.7205]
[1729438722819,0.37086,2697.1,2696.9,1.09138]
[1729438723118,0.37084,2697.2,2696.4,3.2078]
[1729438723415,0.37088,2696.9,2696.7,0.3709]
[1729438723817,0.37091,2696.8,2696.6,0.37092]
[1729438724013,0.7261,2696.9,2696.6,0.37092]
[1729438724216,0.37091,2696.7,2696.5,1.10473]
[1729438724414,0.7261,2696.9,2696.5,0.7338]
[1729438724624,4.30479,2696.9,2696.7,0.37091]
[1729438724824,1.09699,2696.9,2696.7,0.37091]
[1729438725018,3.9339,2696.9,2696.5,0.7338]
[1729438725214,0.37091,2696.8,2696.6,0.37092]
[1729438726024,0.37093,2696.6,2696.4,0.37095]
[1729438726223,0.37093,2696.6,2696.2,3.959]
[1729438726615,0.37092,2696.7,2696.5,0.37093]
[1729438726920,0.3709,2696.8,2696.5,0.37093]
[1729438727119,0.37092,2696.7,2696.5,0.37093]
[1729438728011,0.37092,2696.7,2696.2,3.959]
[1729438728217,0.37092,2696.7,2696.6,0.37092]